bitfinex/quotes_SOLUSD_20240824
["timestamp","ask_amount","ask_price","bid_price","bid_amount"]
[1724530936376,0.8402428,161.27,161.25,4.65598688]
[1724530936571,0.8402428,161.27,161.24,11.86395594]
[1724530937607,0.8402428,161.27,161.26,11.86395594]
[1724530937770,0.8402428,161.27,161.26,56.86395594]
[1724530938200,0.8402428,161.27,161.24,11.86395594]
[1724530940785,0.8402428,161.27,161.23,11.86395594]
[1724530940986,0.8402428,161.27,161.24,45.0]
[1724530941293,0.8402428,161.27,161.23,45.0]
[1724530946215,0.8402428,161.27,161.21,11.86395594]
[1724530954907,0.8402428,161.27,161.21,47.09122867]
[1724530956706,0.8402428,161.27,161.22,45.0]
[1724530958426,0.8402428,161.27,161.23,11.86395594]
[1724530959202,0.8402428,161.27,161.25,11.86395594]
[1724530971348,15.523,161.34,161.26,67.45582376]
[1724530971510,15.523,161.39,161.33,11.86395594]
[1724530971705,15.523,161.39,161.35,11.86395594]
[1724530972239,15.523,161.39,161.37,11.86395594]
[1724530972470,6.3692,161.42,161.3,15.0059]
[1724530972624,6.3692,161.42,161.36,11.86395594]
[1724530974441,6.3692,161.42,161.31,7.44664698]
[1724530974643,6.3692,161.42,161.32,56.86395594]
[1724530974826,6.3692,161.42,161.32,11.86395594]
[1724530977255,15.6003,161.4,161.3,11.86395594]
[1724530977647,15.6003,161.4,161.32,11.86395594]
[1724530981563,27.46425594,161.4,161.26,20.0]
[1724530981762,33.66005594,161.4,161.3,11.86395594]
[1724530982243,45.0,161.39,161.3,11.86395594]
[1724530982759,33.66005594,161.4,161.3,11.86395594]
[1724530984366,27.46425594,161.4,161.3,11.86395594]
[1724530986371,33.65995594,161.4,161.3,11.86395594]
[1724530987861,6.1962,161.39,161.3,11.86395594]
[1724530988177,6.1962,161.39,161.28,14.87706141]
[1724530988773,18.06045594,161.38,161.28,14.87706141]
[1724530989075,6.6662,161.36,161.28,11.86395594]
[1724530991645,16.3273,161.35,161.28,11.86395594]
[1724530991850,16.3273,161.35,161.26,14.87726579]
[1724530993752,16.3273,161.35,161.26,11.86395594]
[1724530993977,16.3273,161.35,161.26,14.8772961]
[1724530994873,16.3273,161.35,161.28,11.86395594]
[1724530995946,16.3273,161.35,161.26,14.87729534]
[1724530996151,16.3273,161.35,161.26,11.86395594]
[1724530996565,16.3273,161.35,161.27,1.55198233]
[1724530996763,16.3273,161.35,161.26,11.86395594]
[1724530996989,16.3273,161.35,161.27,1.55198217]
[1724530997276,16.3273,161.35,161.26,11.86395594]
[1724530997450,16.3273,161.35,161.27,1.55202502]
[1724530997650,16.3273,161.35,161.26,11.86395594]
[1724530997848,16.3273,161.35,161.27,1.55202502]
[1724530997849,22.5251,161.35,161.27,1.55202502]
[1724530998085,22.5251,161.35,161.26,11.86395594]
[1724530998265,34.38905594,161.35,161.27,1.55201661]
[1724530998460,6.1985,161.33,161.24,11.86395594]
[1724530998666,6.1985,161.33,161.25,1.55201928]
[1724530998972,6.1985,161.33,161.26,1.55201928]
[1724530999183,6.1985,161.33,161.27,1.55201928]
[1724530999388,6.1985,161.33,161.24,11.86395594]
[1724530999687,6.1981,161.34,161.25,1.55203537]
[1724530999854,6.1981,161.34,161.26,1.55203537]
[1724531000050,6.1981,161.34,161.24,11.86395594]
[1724531000360,6.1981,161.34,161.25,1.55203763]
[1724531000561,6.1981,161.34,161.26,1.55203763]
[1724531000758,6.1981,161.34,161.27,1.55203763]
[1724531000979,6.1981,161.34,161.24,11.86395594]
[1724531001179,6.1981,161.34,161.25,1.55203514]
[1724531001377,16.3273,161.35,161.26,1.55203514]
[1724531001580,16.3273,161.35,161.27,13.41599108]
[1724531001770,22.525,161.35,161.27,11.86395594]
[1724531003493,22.525,161.35,161.28,1.55203494]
[1724531003792,22.525,161.35,161.27,11.86395594]
[1724531003966,22.525,161.35,161.28,1.55202745]
[1724531004167,16.3273,161.35,161.27,11.86395594]
[1724531004376,16.3273,161.35,161.28,1.55202729]
[1724531004570,16.3273,161.35,161.29,1.55202729]
[1724531004768,16.3273,161.35,161.27,11.86395594]
[1724531004980,16.3273,161.35,161.28,1.55191466]
[1724531005184,16.3273,161.35,161.27,11.86395594]
[1724531005185,16.3273,161.35,161.29,1.55191466]
[1724531005489,16.3273,161.35,161.27,11.86395594]
[1724531005689,16.3273,161.35,161.28,1.55188928]
[1724531005869,16.3273,161.35,161.29,1.55188928]
[1724531006071,16.3273,161.35,161.31,11.86395594]
[1724531008091,16.3273,161.35,161.29,11.86395594]
[1724531008293,16.3273,161.35,161.3,1.55186246]
[1724531008594,16.3273,161.35,161.29,11.86395594]
[1724531008801,16.3273,161.35,161.3,1.5518623]
[1724531009001,16.3273,161.35,161.29,11.86395594]
[1724531009198,16.3273,161.35,161.3,1.55186246]
[1724531009377,16.3273,161.35,161.29,11.86395594]
[1724531009578,16.3273,161.35,161.3,1.5518639]
[1724531009782,16.3273,161.35,161.31,1.55180574]
[1724531009982,16.3273,161.35,161.29,11.86395594]
[1724531010187,16.3273,161.35,161.3,1.55180561]
[1724531010481,16.3273,161.35,161.31,1.55180561]
[1724531010683,16.3273,161.35,161.32,1.23970051]
[1724531010883,22.9253,161.4,161.31,11.86395594]
[1724531011079,22.9253,161.4,161.32,1.55163072]
[1724531011388,22.9253,161.4,161.33,1.55161148]
[1724531011590,22.9253,161.4,161.31,11.86395594]
[1724531011794,34.78925594,161.4,161.32,1.55160549]
[1724531012110,34.78925594,161.4,161.27,15.7017]
[1724531012295,11.86395594,161.38,161.28,13.4156067]
[1724531012604,11.86395594,161.38,161.29,1.55165076]
[1724531012783,11.86395594,161.38,161.3,1.55165076]
[1724531013109,11.86395594,161.38,161.31,1.55165076]
[1724531013297,11.86395594,161.38,161.28,11.86395594]
[1724531013607,11.86395594,161.38,161.29,1.55174231]
[1724531013777,11.86395594,161.38,161.3,1.55174231]
[1724531013972,11.86395594,161.38,161.31,1.55174231]
[1724531014209,18.06055594,161.38,161.28,11.86395594]
[1724531014408,6.3983,161.35,161.29,1.55175106]
[1724531014577,6.3983,161.35,161.24,7.75870917]
[1724531014578,6.3983,161.35,161.3,1.55175106]
[1724531014772,6.3983,161.35,161.25,11.86395594]
[1724531014773,12.596,161.35,161.25,11.86395594]
[1724531014999,6.1987,161.33,161.26,1.55192387]
[1724531015178,6.3983,161.35,161.27,1.55192387]
[1724531015377,6.3983,161.35,161.28,1.55192387]
[1724531015596,6.3983,161.35,161.29,1.55192387]
[1724531015905,6.3983,161.35,161.25,11.86395594]
[1724531016200,6.3983,161.35,161.26,1.55195794]
[1724531016505,6.3983,161.35,161.27,1.55195794]
[1724531016708,6.3983,161.35,161.28,1.55195794]
[1724531017012,6.3983,161.35,161.29,1.55195794]
[1724531017310,6.3983,161.35,161.3,1.55195794]
[1724531017519,6.3983,161.35,161.25,11.86395594]
[1724531017703,6.3983,161.35,161.26,1.55195719]
[1724531017882,6.3983,161.35,161.27,1.55195719]
[1724531018199,6.3983,161.35,161.28,1.55195719]
[1724531018401,6.3983,161.35,161.29,1.55195719]
[1724531018576,6.3983,161.35,161.3,1.55195719]
[1724531018779,6.3983,161.35,161.25,11.86395594]
[1724531019002,6.3983,161.35,161.26,1.55195719]
[1724531019203,6.3983,161.35,161.27,1.55195783]
[1724531019592,6.3983,161.35,161.28,1.55195783]
[1724531019889,6.3983,161.35,161.29,1.55195783]
[1724531020112,6.3983,161.35,161.3,1.55195783]
[1724531020286,6.3983,161.35,161.25,11.86395594]
[1724531020489,6.3983,161.35,161.26,1.55195799]
[1724531020807,6.3983,161.35,161.27,1.55195799]
[1724531021011,6.3983,161.35,161.28,1.55195799]
[1724531021177,6.3983,161.35,161.29,1.55195799]
[1724531021387,6.3983,161.35,161.3,1.55195799]
[1724531021599,6.3983,161.35,161.25,11.86395594]
[1724531021801,12.5961,161.35,161.26,1.55195799]
[1724531022012,12.5963,161.35,161.27,1.55195799]
[1724531022215,12.5963,161.35,161.28,1.55195799]
[1724531022523,12.5963,161.35,161.29,1.55194894]
[1724531022722,12.5963,161.35,161.26,11.86395594]
[1724531022923,12.5963,161.35,161.3,1.55195735]
[1724531023110,12.5963,161.35,161.26,11.86395594]
[1724531023421,12.5963,161.35,161.27,1.5519579]
[1724531023721,12.5963,161.35,161.28,1.5519579]
[1724531023926,12.5963,161.35,161.29,1.5519579]
[1724531024101,12.5963,161.35,161.3,1.5519579]
[1724531024292,6.3983,161.35,161.26,11.86395594]
[1724531024498,6.3983,161.35,161.27,1.55195783]
[1724531024692,6.3983,161.35,161.28,1.55195783]
[1724531024898,6.3983,161.35,161.29,1.55195783]
[1724531025110,6.3983,161.35,161.3,1.55195783]
[1724531025320,6.3983,161.35,161.31,1.55194862]
[1724531025530,6.3983,161.35,161.26,11.86395594]
[1724531025714,6.3983,161.35,161.27,1.55194926]
[1724531026011,6.3983,161.35,161.28,1.55194926]
[1724531026318,6.3983,161.35,161.29,1.55194926]
[1724531026523,6.3983,161.35,161.3,1.55194926]
[1724531026719,6.3983,161.35,161.26,11.86395594]
[1724531026917,6.3983,161.35,161.27,1.55195783]
[1724531027225,6.3983,161.35,161.28,1.55195783]
[1724531027394,6.3983,161.35,161.29,1.55195783]
[1724531027598,6.3983,161.35,161.3,1.55195783]
[1724531027825,6.3983,161.35,161.26,11.86395594]
[1724531028027,6.3983,161.35,161.27,1.55197113]
[1724531028231,6.3983,161.35,161.28,1.55197113]
[1724531028527,6.3983,161.35,161.29,1.55197113]
[1724531028730,6.3983,161.35,161.3,1.55197113]
[1724531028902,6.3983,161.35,161.26,11.86395594]
[1724531029094,6.3983,161.35,161.27,1.55197435]
[1724531029301,6.3983,161.35,161.28,1.55197435]
[1724531029522,6.3983,161.35,161.29,1.55197435]
[1724531029822,6.3983,161.35,161.3,1.55197435]
[1724531030127,6.3983,161.35,161.26,11.86395594]
[1724531030319,6.3983,161.35,161.27,1.55197626]
[1724531030518,12.596,161.35,161.28,1.55197626]
[1724531030823,56.86395594,161.34,161.24,11.86395594]
[1724531032226,56.86395594,161.34,161.26,11.86395594]
[1724531032227,45.0,161.34,161.26,11.86395594]
[1724531034326,45.2962483,161.34,161.26,11.86395594]
[1724531038111,15.1467,161.33,161.23,6.4809381]
[1724531038316,56.86395594,161.32,161.23,6.4809381]
[1724531038514,56.86395594,161.32,161.22,11.86395594]
[1724531039204,63.06275594,161.32,161.22,11.86395594]
[1724531039817,6.1995,161.31,161.22,11.86395594]
[1724531041119,45.0,161.3,161.22,11.86395594]
[1724531042719,45.0,161.31,161.22,11.86395594]
[1724531045439,21.3452,161.33,161.22,11.86395594]
[1724531045743,45.0,161.32,161.24,11.86395594]
[1724531046338,15.1467,161.33,161.24,11.86395594]
[1724531046761,15.1467,161.33,161.26,11.86395594]
[1724531047037,0.2962483,161.34,161.3,11.86395594]
[1724531048043,0.2962483,161.34,161.32,11.86395594]
[1724531048439,0.2962483,161.34,161.33,1.23957161]
[1724531049437,0.2962483,161.34,161.32,11.86395594]
[1724531057959,0.2962483,161.34,161.33,11.86395594]
[1724531061164,6.3007,161.44,161.33,28.37685594]
[1724531061467,6.3007,161.44,161.38,11.86395594]
[1724531063764,12.4949,161.44,161.38,11.86395594]
[1724531063964,12.4949,161.44,161.27,27.89749607]
[1724531063965,11.86395594,161.4,161.26,16.5129]
[1724531064272,6.1954,161.41,161.34,11.86395594]
[1724531064441,22.0774,161.42,161.34,11.86395594]
[1724531065068,28.2725,161.42,161.34,11.86395594]
[1724531065242,28.2725,161.42,161.31,6.2881]
[1724531065243,6.1962,161.39,161.31,6.2881]
[1724531065641,11.86395594,161.38,161.27,6.2881]
[1724531065841,11.86395594,161.34,161.23,18.15205594]
[1724531066056,22.0774,161.35,161.23,18.15205594]
[1724531066057,11.86395594,161.32,161.23,6.2881]
[1724531066259,6.1992,161.31,161.23,6.2881]
[1724531067779,11.86395594,161.32,161.23,6.2881]
[1724531071075,18.06275594,161.32,161.23,6.2881]
[1724531074577,18.06275594,161.32,161.22,16.5129]
[1724531074872,18.06355594,161.3,161.22,16.5129]
[1724531075560,6.1996,161.3,161.22,16.5129]
[1724531082267,11.86395594,161.28,161.21,35.22727273]
[1724531082467,6.2004,161.28,161.21,35.22727273]
[1724531082680,65.0,161.29,161.21,47.09122867]
[1724531082982,45.0,161.29,161.21,47.09122867]
[1724531083164,45.0,161.3,161.21,47.09122867]
[1724531084387,6.2,161.29,161.21,47.09122867]
[1724531090489,51.1996,161.3,161.21,47.09122867]
[1724531090788,51.1996,161.3,161.23,11.86395594]
[1724531091283,51.1996,161.3,161.24,22.2622]
[1724531092961,6.2,161.29,161.24,22.2622]
[1724531093181,6.2,161.29,161.24,16.2615]
[1724531093487,51.2005,161.28,161.21,35.22727273]
[1724531093785,45.0,161.27,161.21,35.22727273]
[1724531095484,11.86395594,161.26,161.21,35.22727273]
[1724531095685,45.0,161.25,161.21,35.22727273]
[1724531097292,51.2015,161.25,161.21,35.22727273]
[1724531097492,18.06595594,161.24,161.21,35.22727273]
[1724531097679,45.0,161.23,161.21,35.22727273]
[1724531098002,6.2027,161.22,161.21,35.22727273]
[1724531098304,56.86395594,161.22,161.21,35.22727273]
[1724531099401,45.0,161.22,161.21,35.22727273]
[1724531102304,63.06665594,161.22,161.21,35.22727273]
[1724531102498,97.95585594,161.22,161.21,35.22727273]
[1724531102679,117.95585594,161.22,161.21,35.22727273]
[1724531105710,6.2041,161.19,161.12,15.4817]
[1724531105911,56.86395594,161.18,161.12,15.4817]
[1724531106508,63.06845594,161.18,161.12,15.4817]
[1724531106705,6.2046,161.17,161.11,6.3706]
[1724531106905,45.0,161.16,161.11,6.3706]
[1724531107215,18.06975594,161.14,161.08,15.4817]
[1724531107719,45.0,161.13,161.08,15.4817]
[1724531108490,45.0,161.14,161.08,15.4817]
[1724531110686,6.2049,161.17,161.09,11.86395594]
[1724531110896,24.8342,161.18,161.09,11.86395594]
[1724531112721,45.0,161.17,161.11,11.86395594]
[1724531112922,11.86395594,161.26,161.13,11.86395594]
[1724531113219,11.86395594,161.24,161.14,11.86395594]
[1724531113716,25.11702092,161.28,161.16,11.86395594]
[1724531113915,25.11702092,161.28,161.18,11.86395594]
[1724531113916,18.06465594,161.27,161.18,11.86395594]
[1724531114118,16.1526,161.33,161.22,11.86395594]
[1724531114426,11.86395594,161.29,161.2,21.7718]
[1724531114793,6.2011,161.27,161.2,21.7718]
[1724531115413,22.63749893,161.33,161.2,33.63575594]
[1724531115635,6.1993,161.31,161.22,11.86395594]
[1724531116123,16.1526,161.33,161.24,11.86395594]
[1724531116295,11.86395594,161.34,161.24,11.86395594]
[1724531116497,6.3325,161.35,161.23,29.56063486]
[1724531116922,18.63,161.34,161.23,29.56063486]
[1724531117324,24.8285,161.33,161.23,29.56063486]
[1724531117622,65.0,161.32,161.23,29.56063486]
[1724531118710,71.1989,161.32,161.23,29.56063486]
[1724531119424,71.1989,161.32,161.21,29.56063486]
[1724531121032,6.1992,161.31,161.21,29.56063486]
[1724531121239,45.0,161.3,161.21,29.56063486]
[1724531124319,6.2003,161.29,161.2,21.7718]
[1724531124536,45.0,161.28,161.2,21.7718]
[1724531125115,51.2004,161.28,161.2,21.7718]
[1724531129435,45.0,161.28,161.2,21.7718]
[1724531129623,45.0,161.29,161.2,21.7718]
[1724531133961,63.63,161.29,161.2,21.7718]
[1724531134135,45.0,161.29,161.2,21.7718]
[1724531135151,6.1993,161.31,161.24,29.56063486]
[1724531135354,16.0,161.34,161.24,29.56063486]
[1724531135565,22.1981,161.34,161.22,1.24016487]
[1724531135862,22.1981,161.34,161.24,29.56063486]
[1724531136567,6.1981,161.34,161.24,29.38005886]
[1724531136746,45.0,161.33,161.24,29.38005886]
[1724531137062,45.0,161.33,161.25,1.24014975]
[1724531137269,45.0,161.33,161.24,29.38005886]
[1724531138065,51.1985,161.33,161.22,29.56063486]
[1724531138671,51.1985,161.33,161.2,21.7718]
[1724531138672,6.1989,161.32,161.2,51.33243486]
[1724531138850,45.0,161.31,161.21,21.55219933]
[1724531139169,45.0,161.31,161.21,20.0]
[1724531140853,45.0,161.31,161.21,20.0]
[1724531143675,45.0,161.31,161.2,51.33243486]
[1724531143676,51.1993,161.31,161.2,51.33243486]
[1724531143850,45.0,161.31,161.22,29.56063486]
[1724531144245,45.0,161.31,161.2,59.18485671]
[1724531145357,45.0,161.31,161.2,51.33243486]
[1724531145672,51.1993,161.31,161.2,51.33243486]
[1724531146879,45.0,161.31,161.2,51.33243486]
[1724531147170,45.0,161.32,161.24,29.56063486]
[1724531147379,45.0,161.33,161.25,1.2400889]
[1724531147547,6.198,161.34,161.24,29.56063486]
[1724531148855,45.0,161.33,161.24,29.56063486]
[1724531150482,51.1981,161.34,161.24,29.56063486]
[1724531151287,45.0,161.34,161.24,29.56063486]
[1724531151453,6.1975,161.36,161.26,29.56063486]
[1724531151454,45.0,161.35,161.26,29.56063486]
[1724531151657,45.0,161.35,161.27,1.23999262]
[1724531152595,45.0,161.35,161.28,11.81833891]
[1724531152955,16.0,161.38,161.3,11.81833891]
[1724531153160,11.81833891,161.41,161.32,11.81833891]
[1724531153370,6.1957,161.41,161.32,11.81833891]
[1724531153981,6.1969,161.37,161.28,11.81833891]
[1724531154180,6.1974,161.36,161.28,11.81833891]
[1724531154383,6.1969,161.37,161.28,11.81833891]
[1724531154585,6.1969,161.37,161.26,31.09871086]
[1724531154771,45.0,161.36,161.26,29.54689953]
[1724531154972,6.1965,161.38,161.26,29.54689953]
[1724531155986,6.1961,161.4,161.28,29.54689953]
[1724531156162,6.1954,161.41,161.31,21.675]
[1724531156494,22.249,161.42,161.31,21.675]
[1724531157076,6.1954,161.41,161.31,21.675]
[1724531157366,6.1954,161.41,161.32,1.55142059]
[1724531158579,22.249,161.42,161.32,1.55142059]
[1724531159163,22.249,161.42,161.32,1.5514202]
[1724531159576,6.1954,161.41,161.32,1.5514202]
[1724531159965,6.1954,161.41,161.33,1.5514202]
[1724531160161,6.1965,161.39,161.31,21.675]
[1724531160393,29.54689953,161.41,161.31,21.675]
[1724531160578,45.0,161.4,161.31,21.675]
[1724531160779,16.054,161.42,161.32,29.54689953]
[1724531160989,6.1949,161.43,161.33,1.55134029]
[1724531161278,31.5384,161.46,161.31,21.675]
[1724531161279,29.54689953,161.44,161.31,21.675]
[1724531161473,29.54689953,161.42,161.32,1.55131787]
[1724531161677,29.54689953,161.38,161.27,21.675]
[1724531161866,6.1974,161.36,161.28,1.55166275]
[1724531162271,45.0,161.35,161.28,1.55190052]
[1724531162788,45.0,161.35,161.27,21.675]
[1724531163375,45.0,161.36,161.27,21.675]
[1724531164374,6.1977,161.35,161.27,21.675]
[1724531164569,45.0,161.34,161.27,21.675]
[1724531166393,51.1981,161.34,161.27,21.675]
[1724531167073,45.0,161.34,161.27,21.675]
[1724531167601,6.1993,161.31,161.27,21.675]
[1724531167811,45.0,161.34,161.27,21.675]
[1724531169077,6.1965,161.38,161.28,1.55184922]
[1724531169278,45.60089953,161.39,161.28,2.79168845]
[1724531169590,16.054,161.39,161.29,1.55184922]
[1724531169893,16.054,161.39,161.3,1.23974616]
[1724531170082,16.054,161.39,161.29,1.55184922]
[1724531170281,22.2502,161.39,161.3,1.55184922]
[1724531170687,45.0,161.38,161.29,1.55184922]
[1724531171003,45.0,161.38,161.28,20.0]
[1724531171193,45.0,161.38,161.29,1.55169198]
[1724531172719,45.0,161.38,161.3,1.55169198]
[1724531172928,45.0,161.38,161.29,1.55169198]
[1724531173207,51.1966,161.38,161.3,1.55169198]
[1724531173418,51.1966,161.38,161.27,51.22189953]
[1724531173419,45.0,161.38,161.29,1.55169198]
[1724531173585,45.0,161.38,161.27,21.675]
[1724531173785,45.0,161.38,161.28,1.55172827]
[1724531173985,6.197,161.37,161.29,1.55172827]
[1724531174197,45.0,161.36,161.28,1.55172827]
[1724531174388,45.0,161.36,161.29,1.55170999]
[1724531174608,45.0,161.36,161.27,51.22189953]
[1724531174609,6.1964,161.39,161.3,1.55170999]
[1724531174910,45.0,161.38,161.29,1.55164132]
[1724531175235,45.0,161.38,161.3,1.55164132]
[1724531175512,45.0,161.38,161.31,1.55160377]
[1724531175708,45.0,161.38,161.3,1.55160377]
[1724531176015,45.0,161.38,161.31,1.55160377]
[1724531176214,45.0,161.38,161.3,1.55160377]
[1724531176504,45.0,161.38,161.31,1.55162471]
[1724531176713,45.0,161.38,161.3,1.55162471]
[1724531176913,45.0,161.38,161.31,1.55162471]
[1724531177214,45.0,161.38,161.3,1.55162471]
[1724531177382,45.0,161.38,161.31,1.55162471]
[1724531177582,45.0,161.38,161.29,3.01283053]
[1724531177805,45.0,161.38,161.3,1.55161966]
[1724531178002,35.74259953,161.41,161.31,1.55161966]
[1724531178196,35.74259953,161.41,161.32,1.55161966]
[1724531178396,35.74259953,161.41,161.3,1.55152694]
[1724531178603,6.1959,161.4,161.31,1.55152694]
[1724531178802,6.1959,161.4,161.32,1.55152694]
[1724531178998,6.1959,161.4,161.3,1.55152694]
[1724531179191,45.0,161.39,161.31,1.55152694]
[1724531179386,45.0,161.39,161.32,1.55152694]
[1724531179619,45.0,161.39,161.3,1.23960804]
[1724531179805,45.0,161.39,161.31,1.55152329]
[1724531179999,45.0,161.39,161.3,1.23960804]
[1724531180000,6.1953,161.42,161.33,22.2103]
[1724531180202,6.1946,161.43,161.34,2.79076111]
[1724531180401,16.368,161.47,161.35,29.54689953]
[1724531180402,22.5613,161.47,161.35,29.54689953]
[1724531180594,6.1931,161.47,161.35,29.54689953]
[1724531180789,0.8285541,161.48,161.36,1.55120074]
[1724531181025,6.1934,161.46,161.37,1.55120074]
[1724531181227,6.1934,161.46,161.36,3.01128189]
[1724531181520,6.1934,161.46,161.37,1.55098795]
[1724531181817,6.1934,161.46,161.38,1.55098795]
[1724531182122,6.1942,161.44,161.36,1.55108546]
[1724531182293,6.1942,161.44,161.34,4.5626758]
[1724531182488,45.0,161.43,161.35,1.55108546]
[1724531182696,6.1946,161.43,161.36,1.55108546]
[1724531183014,45.0,161.42,161.35,1.55108546]
[1724531183219,45.0,161.42,161.36,1.55108546]
[1724531183515,45.0,161.42,161.35,1.55108546]
[1724531184391,45.0,161.42,161.34,4.56270241]
[1724531184591,45.0,161.42,161.35,1.55109687]
[1724531184812,45.0,161.42,161.33,22.2103]
[1724531184813,45.0,161.42,161.34,1.55109687]
[1724531185126,45.0,161.42,161.35,1.55109687]
[1724531185425,45.0,161.42,161.34,4.56253795]
[1724531185719,45.0,161.43,161.34,1.55109687]
[1724531185923,80.74159953,161.43,161.34,1.55109687]
[1724531187507,80.74159953,161.43,161.34,1.5511654]
[1724531188012,80.74159953,161.43,161.34,4.6534962]
[1724531191030,6.1951,161.42,161.34,3.1023308]
[1724531191233,45.0,161.41,161.34,3.1023308]
[1724531192432,6.1942,161.44,161.34,4.65351547]
[1724531192736,45.0,161.43,161.35,1.55118467]
[1724531194070,45.0,161.43,161.35,1.55115553]
[1724531194071,6.1954,161.41,161.35,1.55115553]
[1724531194231,6.1954,161.41,161.34,3.1023308]
[1724531194634,80.74189953,161.43,161.33,22.2103]
[1724531195677,6.1951,161.42,161.33,22.2103]
[1724531195842,74.54689953,161.41,161.33,22.2103]
[1724531196041,6.1958,161.4,161.33,22.2103]
[1724531197861,6.1969,161.37,161.33,22.2103]
[1724531198165,6.1965,161.38,161.33,22.2103]
[1724531200842,6.1977,161.35,161.33,22.2103]
[1724531201041,6.1972,161.37,161.33,22.2103]
[1724531205294,6.1966,161.38,161.33,22.2103]
[1724531205452,45.0,161.37,161.33,22.2103]
[1724531208984,51.197,161.37,161.33,22.2103]
[1724531210394,11.81748216,161.36,161.33,22.2103]
[1724531213186,45.0,161.35,161.29,22.1422]
[1724531213396,45.0,161.35,161.3,1.55179573]
[1724531213596,11.81748216,161.34,161.3,1.55179573]
[1724531213783,11.81748216,161.34,161.29,22.1422]
[1724531214481,11.81748216,161.34,161.3,1.55184137]
[1724531214682,11.81748216,161.34,161.29,22.1422]
[1724531214890,11.81748216,161.34,161.3,1.55184137]
[1724531215088,11.81748216,161.34,161.29,22.1422]
[1724531215393,11.81748216,161.34,161.3,1.55184137]
[1724531215585,45.0,161.33,161.29,22.1422]
[1724531217201,11.81748216,161.32,161.29,22.1422]
[1724531217681,15.1458,161.39,161.29,22.1422]
[1724531217883,11.81748216,161.36,161.29,22.1422]
[1724531219171,45.0,161.35,161.29,22.1422]
[1724531221485,56.81748216,161.36,161.29,22.1422]
[1724531222087,11.81748216,161.34,161.29,22.1422]
[1724531222283,45.0,161.33,161.29,22.1422]
[1724531226182,11.81748216,161.34,161.29,22.1422]
[1724531231305,11.81748216,161.34,161.3,1.55179543]
[1724531231496,11.81748216,161.34,161.29,22.1422]
[1724531232214,18.01478216,161.36,161.29,22.1422]
[1724531232392,6.1969,161.37,161.29,22.1422]
[1724531232592,11.81748216,161.36,161.29,22.1422]
[1724531233795,45.0,161.35,161.29,22.1422]
[1724531235817,11.81748216,161.34,161.29,22.1422]
[1724531236019,45.0,161.33,161.29,22.1422]
[1724531242516,45.0,161.33,161.3,3.01345512]
[1724531242720,45.0,161.33,161.29,22.1422]
[1724531242899,45.0,161.33,161.3,3.01345491]
[1724531243102,45.0,161.33,161.29,22.1422]
[1724531243300,45.0,161.33,161.3,3.01345477]
[1724531243503,45.0,161.33,161.29,22.1422]
[1724531243715,45.0,161.33,161.3,3.01347757]
[1724531244021,18.01638216,161.32,161.25,21.4949]
[1724531244222,45.0,161.31,161.25,21.4949]
[1724531245511,45.0,161.31,161.26,4.6558274]
[1724531246099,45.0,161.31,161.25,21.4949]
[1724531246306,11.81748216,161.32,161.26,4.6558266]
[1724531246739,11.81748216,161.32,161.25,21.4949]
[1724531252055,11.81748216,161.28,161.25,21.4949]
[1724531253740,11.81748216,161.26,161.22,6.2795]
[1724531253934,11.81748216,161.25,161.22,6.2795]
[1724531254133,45.0,161.27,161.22,6.2795]
[1724531254762,11.81748216,161.27,161.22,6.2795]
[1724531256958,45.0,161.28,161.22,6.2795]
[1724531257160,56.81748216,161.28,161.22,6.2795]
[1724531261637,45.0,161.28,161.22,6.2795]
[1724531261846,11.81748216,161.29,161.22,6.2795]
[1724531266976,6.199,161.32,161.22,6.2795]
[1724531267155,11.81748216,161.32,161.22,6.2795]
[1724531267473,11.81748216,161.32,161.22,10.93596492]
[1724531267669,18.01638216,161.32,161.22,10.93596492]
[1724531268475,45.0,161.31,161.22,6.2795]
[1724531268645,45.0,161.31,161.22,10.93551921]
[1724531271860,45.0,161.31,161.22,10.93551965]
[1724531272358,45.0,161.31,161.23,11.81748216]